bitfinex/quotes_ETHUSD_20240731
["timestamp","ask_amount","ask_price","bid_price","bid_amount"]
[1722409240273,17.81068884,3329.4,3329.3,4.17e-06]
[1722409240565,12.611328,3329.4,3329.3,4.17e-06]
[1722409240937,15.614868,3329.4,3329.3,4.17e-06]
[1722409241422,17.81068884,3329.4,3329.3,4.17e-06]
[1722409241623,15.614868,3329.4,3329.3,4.17e-06]
[1722409242379,17.80980036,3329.4,3329.3,4.17e-06]
[1722409242747,15.614868,3329.4,3329.3,4.17e-06]
[1722409245068,12.611328,3329.4,3329.3,4.17e-06]
[1722409245744,14.49206663,3329.4,3329.3,4.17e-06]
[1722409245962,14.49205245,3329.4,3329.3,4.17e-06]
[1722409247260,17.49559245,3329.4,3329.3,4.17e-06]
[1722409247627,15.614868,3329.4,3329.3,4.17e-06]
[1722409247828,12.611328,3329.4,3329.3,4.17e-06]
[1722409248027,14.492068,3329.4,3329.3,4.17e-06]
[1722409248777,14.4923028,3329.4,3329.3,4.17e-06]
[1722409249638,9.607788,3329.4,3329.3,4.17e-06]
[1722409251352,12.611328,3329.4,3329.3,4.17e-06]
[1722409251550,9.607788,3329.4,3329.3,4.17e-06]
[1722409251754,12.611328,3329.4,3329.3,4.17e-06]
[1722409252281,16.9066809,3329.4,3329.3,4.17e-06]
[1722409252487,19.9102209,3329.4,3329.3,4.17e-06]
[1722409252788,18.028368,3329.4,3329.3,4.17e-06]
[1722409254743,3.00414,3328.8,3327.6,2.3827]
[1722409254963,3.00507,3327.7,3327.6,2.3827]
[1722409255332,3.00507,3327.7,3327.6,37.3827]
[1722409256271,3.00499,3327.8,3327.6,37.3827]
[1722409256944,3.0049,3327.9,3327.6,37.3827]
[1722409257143,3.005,3327.8,3327.6,37.3827]
[1722409257404,3.00507,3327.7,3327.6,37.3827]
[1722409258083,6.01014,3327.7,3327.6,35.0]
[1722409259538,3.00507,3327.7,3327.6,35.0]
[1722409260394,6.01014,3327.7,3327.6,35.0]
[1722409261066,3.00535,3327.4,3327.1,2.4318]
[1722409261309,3.00553,3327.2,3327.1,2.4318]
[1722409261520,3.00553,3327.2,3327.1,37.4318]
[1722409261696,3.0054,3327.4,3327.1,37.4318]
[1722409261895,3.0051,3327.7,3327.1,37.4318]
[1722409262274,3.00531,3327.5,3327.1,37.4318]
[1722409262480,3.00536,3327.4,3327.1,37.4318]
[1722409263174,3.00531,3327.5,3327.1,37.4318]
[1722409263175,3.00544,3327.3,3327.1,37.4318]
[1722409263397,3.00553,3327.2,3327.1,37.4318]
[1722409263614,3.00544,3327.3,3327.1,37.4318]
[1722409264187,3.00553,3327.2,3327.1,37.4318]
[1722409264596,3.00553,3327.2,3327.1,35.0]
[1722409264810,6.01106,3327.2,3327.1,35.0]
[1722409265228,3.00589,3326.8,3326.7,2.4655]
[1722409265374,3.00571,3327.0,3326.7,2.4655]
[1722409266127,3.00589,3326.8,3326.7,2.4655]
[1722409266481,3.00571,3327.0,3326.7,2.4655]
[1722409267428,6.01113,3327.2,3326.7,2.4655]
[1722409267631,3.00554,3327.2,3326.7,2.4655]
[1722409267785,3.00582,3326.9,3326.7,2.4655]
[1722409267978,3.00557,3327.2,3326.7,2.4655]
[1722409268219,7.35,3327.5,3326.7,2.77217121]
[1722409268488,7.35,3327.5,3326.8,3.00581]
[1722409268697,7.35,3327.5,3326.9,35.0]
[1722409268904,3.00463,3328.2,3327.1,3.00561]
[1722409269104,3.00463,3328.2,3326.8,2.656]
[1722409269105,10.35454,3328.3,3327.4,3.00534]
[1722409269407,10.35454,3328.3,3327.3,2.359]
[1722409269408,10.35455,3328.3,3327.3,2.359]
[1722409269621,3.00487,3328.0,3327.6,35.0]
[1722409269801,3.0049,3327.9,3327.6,35.0]
[1722409270001,3.00471,3328.1,3327.6,35.0]
[1722409270230,3.00481,3328.0,3327.6,35.0]
[1722409270796,3.00496,3327.9,3327.6,35.0]
[1722409271413,3.00507,3327.7,3327.6,35.0]
[1722409271620,9.23448544,3328.3,3327.6,35.0]
[1722409271827,3.00491,3327.9,3327.6,35.0]
[1722409272233,3.00507,3327.7,3327.6,35.0]
[1722409272396,6.01014,3327.7,3327.6,35.0]
[1722409273011,5.4874,3328.2,3326.8,2.3052]
[1722409273210,3.00536,3327.4,3326.8,2.3052]
[1722409273399,3.00561,3327.2,3326.8,2.3052]
[1722409273637,12.24037063,3327.7,3326.9,35.0]
[1722409273956,3.00472,3328.1,3327.1,5.31081]
[1722409274098,3.0,3328.2,3327.4,3.00534]
[1722409274302,10.35456,3328.3,3327.5,2.4024]
[1722409274527,7.35,3328.3,3327.6,35.0]
[1722409274697,7.35,3328.3,3327.7,6.05408288]
[1722409275145,7.35,3328.3,3327.5,2.4024]
[1722409275530,7.35,3328.3,3327.8,35.0]
[1722409275728,3.0,3328.6,3328.0,2.3031]
[1722409275930,3.0,3328.6,3328.1,0.06009104]
[1722409276151,7.35,3328.8,3328.4,3.00444]
[1722409276359,2.19917393,3329.6,3328.4,3.00444]
[1722409276360,1.88500623,3329.4,3328.5,3.00429]
[1722409276531,3.00338,3329.6,3328.5,3.06436853]
[1722409276735,7.35,3329.8,3328.8,2.2847]
[1722409276736,2.1848857,3329.5,3328.8,2.2847]
[1722409277058,1.8845477,3329.6,3328.8,2.2847]
[1722409277257,7.35,3329.8,3329.0,3.00384]
[1722409277467,3.00329,3329.7,3328.8,5.28878]
[1722409277764,3.00346,3329.5,3329.1,35.0]
[1722409277966,9.2345477,3329.8,3329.1,35.0]
[1722409278120,1.8845477,3329.7,3329.1,35.0]
[1722409278471,3.00361,3329.4,3329.1,35.0]
[1722409279068,3.00336,3329.6,3329.1,35.0]
[1722409279275,3.00328,3329.7,3329.1,35.0]
[1722409279818,3.00338,3329.6,3329.1,35.0]
[1722409280013,3.00351,3329.5,3329.1,35.0]
[1722409280255,3.00356,3329.4,3329.1,35.0]
[1722409280617,3.00337,3329.6,3329.1,35.0]
[1722409280923,3.00355,3329.4,3329.1,35.0]
[1722409281126,3.00363,3329.3,3329.1,35.0]
[1722409281434,3.00354,3329.4,3329.1,35.0]
[1722409282264,3.00337,3329.6,3329.1,35.0]
[1722409282768,3.00352,3329.5,3329.1,35.0]
[1722409282974,3.00355,3329.4,3329.1,35.0]
[1722409283124,3.00362,3329.4,3329.1,35.0]
[1722409283326,9.23429655,3329.8,3329.1,35.0]
[1722409283562,9.23404042,3329.8,3328.8,2.2847]
[1722409283866,3.00378,3329.2,3328.8,2.2847]
[1722409284164,3.00378,3329.2,3328.9,35.0]
[1722409285070,3.00384,3329.1,3328.9,35.0]
[1722409285362,3.0039,3329.0,3328.9,35.0]
[1722409285561,3.00402,3328.9,3328.4,2.2511]
[1722409285866,3.0039,3329.0,3328.4,2.2511]
[1722409286069,1.88381693,3329.3,3328.5,35.0]
[1722409286269,3.00426,3328.6,3328.4,2.2511]
[1722409286568,3.00426,3328.6,3327.8,10.61618]
[1722409286569,3.00426,3328.6,3327.9,2.2925]
[1722409286777,3.00445,3328.4,3328.0,35.0]
[1722409287422,3.00426,3328.6,3328.0,35.0]
[1722409287733,3.00426,3328.6,3328.0,35.55316619]
[1722409287930,1.8837884,3329.0,3328.0,35.55316619]
[1722409288167,10.35373,3329.2,3328.0,35.55316619]
[1722409288168,3.00444,3328.4,3328.0,35.0]
[1722409288464,3.00413,3328.8,3328.0,35.0]
[1722409288633,3.00409,3328.8,3328.0,35.0]
[1722409289162,3.00436,3328.5,3328.0,35.0]
[1722409289528,3.00445,3328.4,3328.0,35.0]
[1722409291130,3.0047,3328.2,3328.0,35.0]
[1722409291466,3.00471,3328.1,3328.0,35.0]
[1722409292070,3.0047,3328.2,3328.0,35.0]
[1722409292382,3.00445,3328.4,3328.0,35.0]
[1722409292525,3.00457,3328.3,3328.0,35.0]
[1722409292862,3.00441,3328.5,3328.0,35.0]
[1722409293724,1.88404761,3328.7,3328.0,35.0]
[1722409293920,10.35409,3328.8,3328.1,2.3792]
[1722409294127,7.35,3328.8,3328.1,2.3792]
[1722409294327,10.3541,3328.8,3328.1,2.3792]
[1722409294567,3.00419,3328.7,3328.1,2.3792]
[1722409294880,3.00419,3328.7,3328.2,35.0]
[1722409295038,3.00427,3328.6,3328.2,35.0]
[1722409295280,1.88387214,3328.7,3328.2,35.0]
[1722409295588,7.35,3328.8,3328.2,35.0]
[1722409295589,3.00453,3328.3,3328.2,35.0]
[1722409296170,6.00906,3328.3,3328.2,35.0]
[1722409296465,3.00477,3328.1,3327.7,2.4531]
[1722409296877,3.00477,3328.1,3327.8,35.0]
[1722409297094,1.88409253,3328.5,3327.8,36.52639864]
[1722409297265,1.88409253,3329.0,3328.3,2.4367]
[1722409297472,9.23409253,3329.2,3328.3,2.4367]
[1722409297771,10.35378,3329.2,3328.4,0.544124]
[1722409298012,3.00387,3329.1,3328.4,0.544124]
[1722409298221,3.00393,3329.0,3328.3,2.4367]
[1722409298370,3.00405,3328.9,3328.3,2.4367]
[1722409298567,7.35,3329.2,3328.3,2.4367]
[1722409298568,3.00385,3329.1,3328.3,2.4367]
[1722409298793,7.35,3329.2,3328.3,2.4367]
[1722409298992,7.35,3329.2,3328.4,3.24811]
[1722409299204,7.35,3329.2,3328.6,3.00425]
[1722409299725,7.88696234,3329.7,3328.4,0.3037507]
[1722409300006,6.00338,3329.6,3328.8,3.00408]
[1722409300217,6.00338,3329.6,3328.9,3.00397]
[1722409300218,3.0,3329.6,3328.9,3.00397]
[1722409300362,6.00336,3329.6,3328.8,0.0600751]
[1722409300567,3.00336,3329.6,3328.8,0.60684251]
[1722409301037,10.35317,3329.9,3328.5,5.48369]
[1722409301038,7.35,3329.9,3328.5,5.48369]
[1722409301308,3.00363,3329.3,3328.5,5.48369]
[1722409301707,3.00347,3329.5,3328.7,3.00416]
[1722409302213,3.00357,3329.4,3328.5,2.4794]
[1722409302506,3.303927,3329.4,3328.6,3.00418]
[1722409302736,3.00357,3329.4,3328.6,3.00418]
[1722409302940,3.00365,3329.3,3328.6,3.00418]
[1722409304331,3.00351,3329.5,3328.6,3.00418]
[1722409304515,3.00351,3329.5,3328.6,3.852979]
[1722409304720,3.00351,3329.5,3328.7,3.06420729]
[1722409304929,3.00354,3329.4,3328.7,3.00413]
[1722409306240,3.00364,3329.3,3328.5,2.4794]
[1722409306470,3.00364,3329.3,3328.5,5.48374]
[1722409306650,3.00364,3329.3,3328.6,3.00422]
[1722409306810,3.00355,3329.4,3328.6,3.00422]
[1722409307199,3.19162366,3329.6,3328.7,0.0600778]
[1722409308234,15.23567331,3329.9,3328.7,3.0642178]
[1722409308235,3.00324,3329.8,3328.7,3.0642178]
[1722409308428,3.00324,3329.8,3329.0,3.00382]
[1722409308745,7.35,3329.9,3329.1,3.00378]
[1722409309048,7.35,3330.3,3329.5,3.00339]
[1722409309256,7.79462655,3330.3,3329.5,3.00339]
[1722409309540,10.79736655,3330.3,3329.5,3.00339]
[1722409309903,3.00282,3330.2,3329.5,3.00339]
[1722409311072,7.79462655,3330.3,3329.6,3.00335]
[1722409311681,10.79741655,3330.3,3329.5,3.06345298]
[1722409311837,3.00282,3330.2,3329.5,3.06345298]
[1722409312371,3.00291,3330.1,3329.3,5.40051]
[1722409312772,3.00291,3330.1,3329.4,3.00353]
[1722409312980,7.79462655,3330.3,3329.6,3.0033]
[1722409312981,7.35,3330.3,3329.6,3.0033]
[1722409313289,7.35,3330.3,3330.1,3.0029]
[1722409313595,7.35,3330.3,3329.9,3.00309]
[1722409313596,3.00206,3331.1,3330.0,0.06005354]
[1722409313730,3.00206,3331.1,3330.1,2.3066]
[1722409313934,7.35,3331.2,3330.4,3.00264]
[1722409314168,10.35194,3331.2,3330.4,3.00264]
[1722409314345,10.35194,3331.2,3330.5,0.06004766]
[1722409314546,7.35,3331.2,3330.2,3.00281]
[1722409314779,7.35,3331.2,3330.3,3.06276476]
[1722409314949,10.35198,3331.2,3330.3,3.06276476]
[1722409315152,3.00201,3331.1,3330.3,0.06004476]
[1722409315509,7.35,3331.2,3330.1,2.3066]
[1722409315510,3.00228,3330.8,3330.1,2.3066]
[1722409315633,3.00228,3330.8,3330.1,5.30951]
[1722409315838,3.00212,3331.0,3330.1,5.30951]
[1722409316158,3.00212,3331.0,3330.2,3.00281]
[1722409316360,3.00212,3331.0,3330.2,3.834042]
[1722409316678,3.00229,3330.8,3330.2,0.831232]
[1722409317183,3.00207,3331.1,3330.2,3.834042]
[1722409317333,10.35194,3331.2,3330.4,3.00263]
[1722409317334,10.35193,3331.2,3330.4,3.00263]
[1722409317679,3.00201,3331.1,3330.3,0.6140642]
[1722409318126,3.00211,3331.0,3330.3,0.6140642]
[1722409318325,3.0022,3330.9,3330.1,2.3066]
[1722409318830,3.00237,3330.7,3330.1,2.3066]
[1722409319332,10.35197,3331.2,3330.3,3.00264]
[1722409319476,10.35197,3331.2,3330.4,0.36631392]
[1722409319682,10.35197,3331.2,3330.4,3.36895392]
[1722409320228,7.35,3331.2,3330.5,3.00254]
[1722409320527,7.35,3331.2,3330.5,3.0625832]
[1722409320685,7.35,3331.2,3330.6,0.33688524]
[1722409320885,7.35,3331.2,3330.7,0.06004472]
[1722409321086,15.19167,3331.5,3330.8,2.3063]
[1722409321396,3.00183,3331.3,3330.8,2.3063]
[1722409321732,3.00192,3331.2,3330.8,2.3063]
[1722409322027,3.00201,3331.1,3330.8,2.3063]
[1722409322193,3.00189,3331.3,3330.8,2.3063]
[1722409322522,3.00192,3331.2,3330.8,2.3063]
[1722409323286,3.00174,3331.4,3330.8,2.3063]
[1722409323681,12.19,3331.5,3330.9,3.06222146]
[1722409324048,12.19,3331.5,3331.1,3.00197]
[1722409324320,12.19,3331.5,3331.0,35.0]
[1722409324525,12.19,3331.5,3331.1,0.06003392]
[1722409324740,12.19,3331.5,3331.1,3.1090468]
[1722409325080,12.19,3331.5,3331.1,6.1110368]
[1722409325539,10.3513,3331.9,3331.1,6.1110368]
[1722409325696,10.3513,3331.9,3331.2,3.00192]
[1722409325899,10.3513,3331.9,3331.2,6.05093288]
[1722409326450,7.35,3331.9,3331.2,3.04901288]
[1722409326601,3.00147,3331.7,3331.2,3.04901288]
[1722409326933,10.35129,3331.9,3331.2,3.04901288]
[1722409327110,7.35,3331.9,3331.4,2.3146]
[1722409327692,3.00153,3331.7,3331.4,2.3146]
[1722409327899,3.00153,3331.7,3331.1,3.04901288]
[1722409328109,3.00153,3331.7,3331.0,2.3882]
[1722409328777,3.00112,3332.1,3331.2,3.00192]
[1722409328982,3.00112,3332.1,3331.3,0.06002819]
[1722409329191,3.00093,3332.3,3331.4,3.00173]
[1722409329539,3.00102,3332.2,3331.5,0.06002684]
[1722409329909,13.00746,3332.9,3331.1,38.00199]
[1722409329910,3.00133,3331.9,3331.1,38.00199]
[1722409330239,3.00053,3332.8,3331.2,3.04901288]
[1722409330240,3.00165,3331.6,3331.2,3.04901288]
[1722409330393,3.00139,3331.8,3331.0,2.3882]
[1722409330598,0.02675627,3331.5,3331.0,2.3882]
[1722409330835,3.00148,3331.7,3331.0,5.43721288]
[1722409331694,3.00148,3331.7,3331.0,4.93721288]
[1722409331890,3.00166,3331.5,3331.0,4.93721288]
[1722409332133,3.00148,3331.7,3331.0,4.93721288]
[1722409332522,3.00165,3331.5,3331.0,4.93721288]
[1722409332902,3.00165,3331.5,3328.1,4.45491977]
[1722409332903,3.00147,3331.7,3330.2,3.00275]
[1722409333103,3.0021,3331.0,3330.2,3.00275]
[1722409333337,3.00235,3330.8,3330.0,3.30418]
[1722409333519,0.02676018,3330.7,3330.2,3.00273]
[1722409333847,3.0021,3331.0,3330.3,38.00267]
[1722409333994,0.02675236,3330.6,3330.3,35.0]
[1722409334195,3.0021,3331.0,3330.3,35.0]
[1722409334398,3.0021,3331.0,3330.4,3.04901288]
[1722409334645,0.02661161,3330.9,3330.3,35.0]
[1722409334961,3.00167,3331.5,3330.7,2.87745]
[1722409335101,3.00174,3331.4,3330.7,2.87745]
[1722409335302,3.00174,3331.4,3330.4,5.50231]
[1722409335303,3.02842597,3331.3,3330.5,3.0025]
[1722409335619,3.00194,3331.2,3330.5,3.0025]
[1722409335828,3.00194,3331.2,3330.5,6.05151288]
[1722409336125,3.00194,3331.2,3330.5,5.80151288]
[1722409336783,3.00174,3331.4,3330.6,3.00245]
[1722409336967,3.00174,3331.4,3330.7,3.00236]
[1722409337169,0.02659597,3331.3,3330.7,3.00236]
[1722409337467,0.02659597,3331.3,3330.7,0.90539029]
[1722409337779,3.02836957,3331.2,3330.5,3.04901288]
[1722409337978,3.02836957,3331.2,3330.4,2.4997]
[1722409338154,3.00215,3331.0,3330.4,2.4997]
[1722409338551,7.35,3331.6,3329.6,2.657]
[1722409338552,3.00237,3330.7,3330.0,5.2741]
[1722409338776,3.00237,3330.7,3330.1,3.0]
[1722409339008,0.02645521,3330.6,3330.0,2.2711]
[1722409339295,3.00216,3331.0,3330.2,3.00282]
[1722409339587,0.02644347,3330.9,3330.4,3.00258]
[1722409339877,0.02644347,3330.9,3330.5,3.00253]
[1722409340085,3.00184,3331.3,3330.5,3.00253]
[1722409340241,3.00184,3331.3,3330.5,2.80573]
[1722409340488,0.02644347,3331.2,3330.7,3.0023]
[1722409340737,3.00148,3331.7,3330.6,2.80541617]
[1722409341036,3.02807347,3331.6,3330.8,3.00227]
[1722409341201,3.02803347,3331.6,3330.6,5.80779617]
[1722409341533,3.00183,3331.3,3330.6,5.80779617]
[1722409341739,0.02642001,3331.2,3330.6,5.747753]
[1722409341894,3.00183,3331.3,3330.6,2.80541489]
[1722409342095,0.02642001,3331.2,3330.6,2.80541489]
[1722409342293,0.02642001,3331.2,3330.6,5.80786489]
[1722409342716,0.02642001,3331.2,3330.6,2.745373]
[1722409342717,3.02835001,3331.2,3330.6,2.745373]
[1722409342920,3.02835001,3331.2,3330.6,2.4648]
[1722409343434,3.00193,3331.2,3330.6,2.52484189]
[1722409343819,3.00201,3331.1,3330.6,2.52484189]
[1722409344022,3.00201,3331.1,3330.6,2.4648]
[1722409345102,0.02642001,3331.0,3330.6,2.4648]
[1722409345505,0.02642001,3331.0,3330.7,35.0]
[1722409345732,3.00193,3331.2,3330.7,35.0]
[1722409345896,0.02642001,3331.1,3330.7,35.0]
[1722409346096,3.00193,3331.2,3330.7,35.0]
[1722409346325,0.02642001,3331.1,3330.7,35.0]
[1722409346494,3.00193,3331.2,3330.7,35.0]
[1722409346838,0.02642001,3331.1,3330.7,35.0]
[1722409347211,3.00193,3331.2,3330.7,35.0]
[1722409347413,3.00207,3331.1,3330.7,35.0]
[1722409347617,3.02849001,3331.1,3330.7,35.0]
[1722409347816,3.00207,3331.1,3330.7,35.0]
[1722409348041,3.0021,3331.0,3330.7,35.0]
[1722409348370,0.02642001,3330.9,3330.7,35.0]
[1722409348668,3.00228,3330.8,3330.3,3.0]
[1722409348869,3.00228,3330.8,3330.2,5.3835]
[1722409349028,0.02642001,3330.7,3330.2,5.3835]
[1722409349233,3.00246,3330.6,3330.3,35.0]
[1722409350424,3.00264,3330.4,3330.3,35.0]
[1722409350775,3.00264,3330.4,3329.5,2.3967]
[1722409350776,3.00297,3330.1,3329.5,2.3967]
[1722409350929,3.02909394,3330.4,3329.5,2.3967]
[1722409351129,3.02909394,3330.4,3329.6,35.0]
[1722409351130,3.00287,3330.2,3329.6,35.0]
[1722409351728,3.02928137,3330.1,3329.6,35.0]
[1722409352430,0.02636137,3330.1,3329.6,35.0]
[1722409352630,0.02636137,3330.1,3329.6,41.05230288]
[1722409352870,3.00267,3330.4,3329.6,41.05230288]
[1722409353081,0.02636137,3330.0,3329.6,41.05230288]
[1722409353369,3.00267,3330.4,3329.6,41.05230288]
[1722409353552,3.00256,3330.5,3329.8,3.00318]
[1722409354548,3.00273,3330.3,3329.8,35.0]
[1722409356970,3.00256,3330.5,3329.8,35.0]
[1722409357178,4.89021279,3330.5,3329.8,35.0]
[1722409357493,1.88765279,3330.4,3329.8,38.00317]
[1722409357787,1.88765279,3330.4,3329.8,35.0]
[1722409357993,1.88765279,3330.5,3329.8,38.00315]
[1722409358151,3.00237,3330.7,3330.0,3.00294]
[1722409358352,4.89002279,3330.7,3330.0,3.00294]
[1722409358767,3.00237,3330.7,3330.0,3.00294]
[1722409359089,4.89002279,3330.7,3330.1,0.06005196]
[1722409359289,3.00246,3330.6,3329.9,2.3671]
[1722409359481,4.89011279,3330.6,3329.9,2.3671]
[1722409359792,4.89011279,3330.6,3330.0,0.06005195]
[1722409359793,1.88765279,3330.6,3330.0,0.06005195]
[1722409359964,1.88765279,3330.7,3330.0,3.06299195]
[1722409360464,3.00247,3330.6,3329.9,5.37018]
[1722409360648,4.89053432,3330.6,3329.9,5.37018]
[1722409360845,4.8906056,3330.6,3329.9,6.72377966]
[1722409361248,3.00247,3330.6,3330.0,0.06005196]
[1722409361751,1.8881356,3330.8,3330.2,3.00276]
[1722409361956,1.8881356,3330.9,3330.3,0.0600478]
[1722409362156,1.8881356,3330.9,3330.2,3.00276]
[1722409362653,1.88793914,3330.9,3330.2,3.00276]
[1722409362998,1.88793914,3330.7,3330.1,0.67838316]
[1722409363226,1.88793914,3330.7,3330.0,3.00293]
[1722409363405,1.88793914,3330.5,3329.9,2.3671]
[1722409363705,4.89081411,3330.5,3329.9,2.3671]
[1722409364904,1.88820411,3330.5,3329.9,5.3701]
[1722409365106,4.89068411,3330.6,3330.0,3.04901288]
[1722409365307,4.89068411,3330.6,3329.9,5.37018]
[1722409365473,1.88820411,3330.6,3330.0,3.06303196]
[1722409366089,4.89057411,3330.7,3330.0,3.06303196]
[1722409366408,4.89057411,3330.7,3329.9,2.3671]
[1722409366409,3.00246,3330.6,3329.9,2.3671]
[1722409367012,1.88806149,3330.7,3329.9,5.41611288]
[1722409367188,4.89048149,3330.7,3330.0,3.00298]
[1722409367720,3.00247,3330.6,3329.9,5.41611288]
[1722409368038,3.00247,3330.6,3329.9,8.41919288]
[1722409369108,4.89040149,3330.8,3330.0,3.00299]
[1722409369271,3.00237,3330.7,3330.0,6.05200288]
[1722409369471,4.89043149,3330.7,3330.0,3.00299]
[1722409369872,3.00237,3330.7,3330.0,3.00299]
[1722409370301,4.89034899,3330.7,3330.0,3.00299]
[1722409370839,4.89041768,3330.7,3330.0,3.00299]
[1722409371606,3.00247,3330.6,3329.9,5.41611288]
[1722409371801,3.00247,3330.6,3329.9,8.41919288]
[1722409371991,4.89041768,3330.7,3329.9,8.41919288]
[1722409372202,4.89041768,3330.7,3330.0,3.00299]
[1722409372577,4.89100806,3330.7,3330.0,3.00299]
[1722409373617,4.89134847,3330.7,3330.0,3.00299]
[1722409374118,1.88897847,3330.7,3330.0,3.00299]
[1722409374443,1.88897847,3330.7,3330.2,3.00282]
[1722409374722,1.88897847,3330.7,3330.1,0.06005203]
[1722409375301,1.88897847,3330.6,3330.1,3.0029]
[1722409375509,1.88897847,3330.7,3330.2,3.00281]
[1722409376489,1.88897847,3330.7,3330.1,0.06005204]
[1722409376693,3.00203,3331.1,3330.1,1.20826053]
[1722409376892,1.8899558,3330.8,3330.4,3.00263]
[1722409377421,1.8899558,3330.7,3330.5,2.3982]
[1722409377624,3.0021,3331.0,3330.5,2.3982]
[1722409377918,1.89030188,3330.7,3330.5,2.3482]
[1722409379790,1.89030188,3330.7,3330.5,2.58302]
[1722409380023,1.89030188,3330.9,3330.6,3.00246]
[1722409380290,1.89061513,3331.0,3330.7,35.0]
[1722409380722,1.89054812,3331.0,3330.7,35.0]
[1722409381095,1.89054812,3330.9,3330.7,35.0]
[1722409382544,10.35192,3331.2,3330.7,35.0]
[1722409382736,1.89070228,3330.9,3330.7,35.0]
[1722409383742,2.20581933,3331.1,3330.2,3.00275]
[1722409383921,1.89082698,3330.7,3330.3,3.00272]
[1722409384096,1.89082698,3330.7,3330.4,35.0]
[1722409384416,0.02634571,3330.6,3330.4,35.0]
[1722409384593,1.91717269,3330.6,3330.4,35.0]
[1722409385024,1.89082698,3330.6,3330.4,35.0]
[1722409385819,1.89087831,3330.6,3330.4,35.0]
[1722409387866,4.89341831,3330.6,3330.4,35.0]
[1722409388064,3.00254,3330.6,3330.4,35.0]
[1722409388426,2.20602469,3330.7,3330.4,35.0]
[1722409388627,1.89113635,3330.7,3330.4,35.0]
[1722409389671,1.89113635,3330.6,3330.4,35.0]
[1722409391269,1.89113635,3330.6,3330.4,38.70609271]
[1722409391481,1.89113635,3330.8,3330.5,3.00255]
[1722409391775,1.89113635,3330.7,3330.5,3.06259475]
[1722409391974,1.89113635,3330.7,3330.4,35.70345271]
[1722409392178,1.89113635,3330.7,3330.4,35.0]
[1722409392324,3.00226,3330.9,3330.4,35.0]
[1722409392529,1.89154911,3330.6,3330.4,35.0]
[1722409392754,3.00226,3330.9,3330.4,35.0]
[1722409393079,1.89161094,3330.8,3330.5,2.3082]
[1722409393317,1.89161094,3330.7,3330.5,2.3082]
[1722409393510,1.89161094,3330.8,3330.5,2.3082]
[1722409393816,1.89161094,3330.7,3330.5,2.3082]
[1722409394405,1.89161094,3330.6,3330.5,2.3082]
[1722409394763,1.89161094,3330.7,3330.5,2.3082]
[1722409395195,1.89161094,3330.6,3330.5,2.3082]
[1722409395418,2.20687943,3330.8,3330.4,35.0]
[1722409395631,1.89160222,3330.5,3330.4,35.0]
[1722409395768,3.00252,3330.6,3330.4,35.0]
[1722409396109,3.00253,3330.6,3330.4,35.0]
[1722409396504,3.00255,3330.5,3330.4,35.0]
[1722409397770,8.21196926,3330.5,3330.4,35.0]
[1722409398071,8.21196926,3330.5,3329.5,3.00345]
[1722409398072,3.00264,3330.4,3329.5,5.31505]
[1722409398297,1.89204593,3330.0,3329.6,0.55]
[1722409398664,3.00264,3330.4,3329.7,35.0]
[1722409398968,1.89227045,3330.0,3329.7,35.0]
[1722409399174,1.89227045,3330.0,3329.7,38.04901288]
[1722409399370,1.89227045,3329.9,3329.7,35.0]
[1722409401495,1.89227045,3330.0,3329.7,35.0]
[1722409402142,3.00283,3330.2,3329.7,35.0]
[1722409402450,1.89219949,3329.9,3329.5,2.3116]
[1722409402662,3.00283,3330.2,3329.5,6.143114]
[1722409402942,1.89215963,3329.9,3329.6,35.0]
[1722409403140,1.89215963,3329.9,3328.6,5.66126]
[1722409403141,2.20751957,3329.8,3328.8,2.2619]
[1722409403354,4.89582011,3329.3,3328.8,2.2619]
[1722409403650,1.89218011,3329.2,3328.9,35.0]
[1722409403855,4.89592011,3329.2,3328.9,35.0]
[1722409404146,1.89218011,3329.1,3328.9,35.0]
[1722409404465,4.89592011,3329.2,3328.9,35.0]
[1722409404605,1.89218011,3329.1,3328.9,35.0]
[1722409405154,4.89599011,3329.1,3328.9,35.0]
[1722409405447,4.89372332,3329.1,3328.9,35.0]
[1722409405650,3.00388,3329.1,3328.9,35.0]
[1722409405798,1.88988785,3329.0,3328.9,35.0]
[1722409406005,1.88988785,3329.3,3328.9,40.37541288]
[1722409406203,1.88988785,3329.7,3329.2,3.00372]
[1722409406442,9.23988785,3329.9,3329.4,3.00353]
[1722409406656,1.88988785,3330.2,3329.4,3.00353]
[1722409406865,1.88988785,3330.1,3329.2,3.0037]
[1722409406998,3.0031,3329.9,3329.5,35.0]
[1722409407353,3.00333,3329.7,3329.5,35.0]
[1722409408289,4.89321785,3329.7,3329.5,35.0]
[1722409408400,3.00336,3329.6,3329.5,35.0]
[1722409408600,3.00336,3329.6,3328.5,5.47874]
[1722409408601,3.00345,3329.5,3328.5,5.47874]
[1722409408859,3.00345,3329.5,3328.9,3.0]
[1722409409141,3.00345,3329.5,3329.0,35.0]
[1722409409353,3.00354,3329.4,3329.0,35.0]
[1722409409503,3.00364,3329.3,3329.0,35.0]
[1722409410915,3.00355,3329.4,3329.0,35.0]
[1722409411110,1.88842045,3329.6,3329.0,35.0]
[1722409411111,4.89184045,3329.6,3329.0,35.0]
[1722409411302,4.89166045,3329.8,3329.0,38.00383]
[1722409411505,3.00324,3329.8,3329.0,41.05284288]
[1722409411935,3.00318,3329.8,3329.1,3.00378]
[1722409412865,1.88706184,3330.1,3329.5,3.00345]
[1722409413005,1.88706184,3330.0,3329.5,3.00345]
[1722409413209,1.88706184,3330.1,3329.5,3.00345]